fUST/lending_fUST_20250404
["ID","MTS","AMOUNT","RATE_DAILY","PERIOD"]
[357120288,1743759046315,-215.0738,0.00016972,2]
[357120289,1743759046326,-1241.80536319,0.00017072,2]
[357120290,1743759046336,-588.68,0.00017231,2]
[357120291,1743759046345,-500.0,0.00017231,2]
[357120292,1743759046354,-500.0,0.00017231,2]
[357120293,1743759046364,-500.0,0.00017231,2]
[357120294,1743759046373,-500.0,0.00017231,2]
[357120295,1743759046383,-500.0,0.00017231,2]
[357120296,1743759046392,-500.0,0.00017231,2]
[357120297,1743759046402,-500.0,0.00017231,2]
[357120298,1743759046412,-500.0,0.00017231,2]
[357120299,1743759046421,-500.0,0.00017231,2]
[357120300,1743759046432,-615.18,0.00017231,2]
[357120301,1743759046442,-500.0,0.00017231,2]
[357120302,1743759046452,-500.0,0.00017231,2]
[357120303,1743759046463,-500.0,0.00017231,2]
[357120304,1743759046472,-500.0,0.00017231,2]
[357120305,1743759046482,-575.8,0.00017231,2]
[357120306,1743759046492,-500.0,0.00017231,2]
[357120307,1743759046502,-478.98,0.00017231,2]
[357120308,1743759046512,-500.0,0.00017231,2]
[357120310,1743759046521,-500.0,0.00017231,2]
[357120311,1743759046530,-500.0,0.00017232,2]
[357120312,1743759046539,-500.0,0.00017232,2]
[357120313,1743759046549,-500.0,0.00017232,2]
[357120314,1743759046558,-500.0,0.00017232,2]
[357120315,1743759046568,-500.0,0.00017232,2]
[357120316,1743759046577,-500.0,0.00017232,2]
[357120317,1743759046586,-500.0,0.00017232,2]
[357120318,1743759046596,-500.0,0.00017232,2]
[357120319,1743759046606,-500.0,0.00017232,2]
[357120320,1743759046615,-500.0,0.00017232,2]
[357120321,1743759046624,-500.0,0.00017232,2]
[357120322,1743759046634,-500.0,0.00017232,2]
[357120323,1743759046643,-500.0,0.00017232,2]
[357120324,1743759046653,-500.0,0.00017232,2]
[357120325,1743759046663,-500.0,0.00017232,2]
[357120326,1743759046672,-500.0,0.00017232,2]
[357120327,1743759046681,-500.0,0.00017232,2]
[357120329,1743759046691,-277.05366259,0.00017232,2]
[357120330,1743759046700,-500.0,0.00017232,2]
[357120331,1743759046709,-500.0,0.00017232,2]
[357120332,1743759046719,-500.0,0.00017232,2]
[357120333,1743759046729,-500.0,0.00017232,2]
[357120334,1743759046739,-4968.79,0.00017232,2]
[357120335,1743759046749,-500.0,0.00017232,2]
[357120336,1743759046759,-500.0,0.00017232,2]
[357120337,1743759046770,-500.0,0.00017232,2]
[357120338,1743759046779,-500.0,0.00017232,2]
[357120339,1743759046789,-500.0,0.00017232,2]
[357120341,1743759046799,-500.0,0.00017232,2]
[357120342,1743759046809,-500.0,0.00017232,2]
[357120343,1743759046818,-500.0,0.00017232,2]
[357120344,1743759046828,-500.0,0.00017232,2]
[357120345,1743759046837,-500.0,0.00017232,2]
[357120346,1743759046847,-500.0,0.00017232,2]
[357120347,1743759046856,-500.0,0.00017232,2]
[357120348,1743759046866,-500.0,0.00017232,2]
[357120349,1743759046875,-500.0,0.00017232,2]
[357120350,1743759046885,-452.75,0.00017232,2]
[357120351,1743759046894,-500.0,0.00017232,2]
[357120352,1743759046904,-500.0,0.00017232,2]
[357120353,1743759046913,-500.0,0.00017232,2]
[357120354,1743759046923,-500.0,0.00017232,2]
[357120355,1743759046932,-500.0,0.00017232,2]
[357120356,1743759046942,-500.0,0.00017232,2]
[357120357,1743759046952,-500.0,0.00017232,2]
[357120358,1743759046962,-500.0,0.00017232,2]
[357120359,1743759046971,-500.0,0.00017232,2]
[357120360,1743759046982,-500.0,0.00017232,2]
[357120361,1743759046991,-242.89043434,0.00017232,2]
[357120364,1743759047001,-500.0,0.00017232,2]
[357120366,1743759047011,-500.0,0.00017232,2]
[357120368,1743759047024,-500.0,0.00017233,2]
[357120369,1743759047034,-500.0,0.00017233,2]
[357120370,1743759047043,-500.0,0.00017233,2]
[357120371,1743759047054,-500.0,0.00017233,2]
[357120372,1743759047063,-535.88981602,0.00017233,2]
[357120373,1743759047073,-500.0,0.00017233,2]
[357120374,1743759047082,-500.0,0.00017233,2]
[357120375,1743759047094,-500.0,0.00017233,2]
[357120376,1743759047104,-500.0,0.00017233,2]
[357120377,1743759047113,-500.0,0.00017233,2]
[357120378,1743759047122,-500.0,0.00017233,2]
[357120379,1743759047220,-501.75896823,0.00017233,2]
[357120380,1743759047244,-500.0,0.00017234,2]
[357120381,1743759047254,-500.0,0.00017234,2]
[357120382,1743759047267,-500.0,0.00017505,2]
[357120383,1743759047277,-500.0,0.00017505,2]
[357120384,1743759047287,-500.0,0.00017505,2]
[357120385,1743759047297,-480.27909195,0.00017505,2]
[357120386,1743759047308,-500.0,0.00017505,2]
[357120387,1743759047319,-500.0,0.00017505,2]
[357120388,1743759047329,-500.0,0.00017505,2]
[357120389,1743759047339,-563.87,0.00017505,2]
[357120390,1743759047349,-500.0,0.00017505,2]
[357120391,1743759047359,-575.8,0.00017505,2]
[357120392,1743759047370,-500.0,0.00017505,2]
[357120393,1743759047379,-500.0,0.00017506,2]
[357120394,1743759047390,-500.0,0.00017506,2]
[357120395,1743759047400,-500.0,0.00017506,2]
[357120396,1743759047409,-414.94099458,0.00017506,2]
[357120397,1743759047419,-500.0,0.00017506,2]
[357120398,1743759047429,-204.52590555,0.00017506,2]
[357120399,1743759047439,-500.0,0.00017506,2]
[357120400,1743759047448,-500.0,0.00017506,2]
[357120401,1743759047459,-500.0,0.00017506,2]
[357120402,1743759047468,-500.0,0.00017506,2]
[357120403,1743759047478,-500.0,0.00017506,2]
[357120404,1743759047488,-4968.79,0.00017506,2]
[357120405,1743759047498,-500.0,0.00017506,2]
[357120406,1743759047508,-500.0,0.00017506,2]
[357120407,1743759047520,-591.16,0.00017506,2]
[357120408,1743759047531,-393.93936613,0.00017506,2]
[357120409,1743759047541,-500.0,0.00017506,2]
[357120410,1743759047551,-500.0,0.00017506,2]
[357120411,1743759047561,-500.0,0.00017506,2]
[357120412,1743759047571,-574.02027841,0.00017506,2]
[357120413,1743759047581,-500.0,0.00017506,2]
[357120414,1743759047591,-500.0,0.00017506,2]
[357120415,1743759047600,-500.0,0.00017506,2]
[357120416,1743759047610,-500.0,0.00017506,2]
[357120417,1743759047619,-624.18333173,0.00017507,2]
[357120418,1743759047629,-500.0,0.00017507,2]
[357120419,1743759047638,-500.0,0.00017507,2]
[357120420,1743759047648,-500.0,0.00017508,2]
[357120421,1743759047657,-492.41869028,0.00017615,2]
[357120422,1743759047666,-5632.25050524,0.00017762,2]
[357120423,1743759047676,-500.0,0.00017779,2]
[357120424,1743759047686,-500.0,0.00017779,2]
[357120425,1743759047696,-409.72090805,0.00017779,2]
[357120426,1743759047705,-639.62,0.00017779,2]
[357120427,1743759047715,-500.0,0.00017779,2]
[357120428,1743759047725,-233.45,0.00017779,2]
[357120429,1743759047735,-575.8,0.00017779,2]
[357120430,1743759047744,-500.0,0.0001778,2]
[357120431,1743759047754,-500.0,0.0001778,2]
[357120432,1743759047763,-4968.79,0.0001778,2]
[357120433,1743759047774,-546.55,0.0001778,2]
[357120434,1743759047783,-395.3,0.0001778,2]
[357120435,1743759047793,-500.0,0.0001778,2]
[357120436,1743759047803,-500.0,0.0001778,2]
[357120437,1743759047812,-500.0,0.0001778,2]
[357120438,1743759047821,-12458.93820146,0.00017895,2]
[357120439,1743759047830,-419.12848707,0.00017895,2]
[357120440,1743759047840,-349.06430794,0.00017961,2]
[357120441,1743759047850,-586.0,0.00018,2]
[357120442,1743759047860,-276.35,0.00018053,2]
[357120443,1743759047869,-500.0,0.00018053,2]
[357120444,1743759047879,-500.0,0.00018053,2]
[357120445,1743759047889,-575.8,0.00018053,2]
[357120446,1743759047898,-500.0,0.00018054,2]
[357120447,1743759047907,-500.0,0.00018054,2]
[357120448,1743759047917,-4968.79,0.00018054,2]
[357120449,1743759047926,-246.01,0.00018054,2]
[357120450,1743759047935,-512.19,0.00018054,2]
[357120451,1743759047944,-408.31,0.00018054,2]
[357120452,1743759047954,-500.0,0.00018327,2]
[357120453,1743759047963,-500.0,0.00018327,2]
[357120454,1743759047973,-575.8,0.00018327,2]
[357120455,1743759047983,-500.0,0.00018328,2]
[357120456,1743759047992,-500.0,0.00018328,2]
[357120457,1743759048002,-4968.79,0.00018328,2]
[357120458,1743759048011,-500.0,0.00018601,2]
[357120459,1743759048023,-500.0,0.00018601,2]
[357120460,1743759048033,-575.8,0.00018601,2]
[357120461,1743759048043,-166.8,0.00018602,2]
[357120462,1743759048053,-500.0,0.00018602,2]
[357120463,1743759048063,-4968.79,0.00018602,2]
[357120464,1743759048072,-5632.25050524,0.00018624,2]
[357120465,1743759048082,-500.0,0.000187,2]
[357120466,1743759048091,-500.0,0.00018875,2]
[357120467,1743759048105,-421.91,0.00018875,2]
[357120468,1743759048115,-575.8,0.00018875,2]
[357120469,1743759048124,-500.0,0.00018876,2]
[357120470,1743759048134,-4968.79,0.00018876,2]
[357120471,1743759048144,-20824.80270665,0.00019,2]
[357120472,1743759048153,-623.26836856,0.00019051,2]
[357120473,1743759048162,-500.0,0.00019149,2]
[357120474,1743759048171,-575.8,0.00019149,2]
[357120475,1743759048181,-500.0,0.0001915,2]
[357120476,1743759048190,-4968.79,0.0001915,2]
[357120477,1743759048199,-151.0,0.00019178,2]
[357120478,1743759048209,-202.65539935,0.00019233,2]
[357120479,1743759048218,-500.0,0.00019423,2]
[357120480,1743759048228,-575.8,0.00019423,2]
[357120481,1743759048238,-500.0,0.00019424,2]
[357120482,1743759048247,-4968.79,0.00019424,2]
[357120483,1743759048256,-5632.25050524,0.00019486,2]
[357120484,1743759048266,-500.0,0.00019697,2]
[357120485,1743759048275,-575.8,0.00019697,2]
[357120486,1743759048285,-500.0,0.00019698,2]
[357120487,1743759048295,-4968.79,0.00019698,2]
[357120488,1743759048304,-151.0,0.000197,2]
[357120489,1743759048314,-500.0,0.00019971,2]
[357120490,1743759048323,-575.8,0.00019971,2]
[357120491,1743759048334,-500.0,0.00019972,2]
[357120492,1743759048344,-4968.79,0.00019972,2]
[357120493,1743759048354,-1444.0,0.0002,2]
[357120494,1743759048363,-401.0,0.00020138,2]
[357120495,1743759048372,-151.0,0.000202,4]
[357120496,1743759048382,-500.0,0.00020245,2]
[357120497,1743759048393,-575.8,0.00020245,2]
[357120498,1743759048403,-500.0,0.00020246,2]
[357120499,1743759048413,-4968.79,0.00020246,2]
[357120500,1743759048423,-5632.25050524,0.00020348,2]
[357120501,1743759048432,-500.0,0.00020519,2]
[357120502,1743759048442,-575.8,0.00020519,2]
[357120503,1743759048452,-500.0,0.0002052,2]
[357120504,1743759048462,-4968.79,0.0002052,2]
[357120505,1743759048472,-151.0,0.000207,4]
[357120506,1743759048481,-500.0,0.00020793,2]
[357120507,1743759048491,-575.8,0.00020793,2]
[357120508,1743759048501,-500.0,0.00020794,2]
[357120509,1743759048511,-4968.79,0.00020794,2]
[357120510,1743759048522,-151.0,0.000208,4]
[357120511,1743759048532,-340.297,0.00020943,2]
[357120512,1743759048543,-1806.0,0.00021,2]
[357120513,1743759048553,-3316.0,0.00021,2]
[357120514,1743759048562,-152.23,0.00021,2]
[357120515,1743759048572,-500.0,0.00021067,2]
[357120516,1743759048581,-575.8,0.00021067,2]
[357120517,1743759048590,-282.85000001,0.00021068,2]
[357120518,1743759048600,-4968.79,0.00021068,2]
[357120519,1743759048611,-5632.25050524,0.0002121,3]
[357120520,1743759048621,-500.0,0.00021273,2]
[357120521,1743759048631,-502.19877289,0.00021273,2]
[357120522,1743759048640,-500.0,0.00021273,2]
[357120523,1743759048650,-500.0,0.00021273,2]
[357120524,1743759048659,-500.0,0.00021273,2]
[357120525,1743759048668,-500.0,0.00021273,2]
[357120526,1743759048678,-492.22199676,0.00021273,2]
[357120527,1743759048687,-500.0,0.00021273,2]
[357120528,1743759048696,-341.75041908,0.00021273,2]
[357120529,1743759048706,-507.34377832,0.00021273,2]
[357120530,1743759048715,-500.0,0.00021273,2]
[357120531,1743759048724,-500.0,0.00021273,2]
[357120532,1743759048734,-500.0,0.00021273,2]
[357120533,1743759048744,-500.0,0.00021273,2]
[357120534,1743759048754,-500.0,0.00021273,2]
[357120535,1743759048763,-500.0,0.00021273,2]
[357120536,1743759048773,-160.0,0.00021282,2]
[357120537,1743759048783,-139736.69543756,0.00021283,2]
[357120538,1743759048868,-75953.853993,0.00021283,2]
[357120539,1743759048880,-154309.45056944,0.00021283,2]
[357120540,1743759048890,-500.0,0.00021341,2]
[357120541,1743759048899,-575.8,0.00021341,2]
[357120542,1743759048910,-4968.79,0.00021342,2]
[357120543,1743759048919,-1000.0,0.00021352,2]
[357120544,1743759048930,-1000.0,0.00021352,2]
[357120545,1743759048939,-151.0,0.000214,3]
[357120546,1743759048949,-160.0,0.0002153,2]
[357120547,1743759048959,-5000.0,0.00021602,2]
[357120548,1743759048968,-530.58,0.00021615,2]
[357120549,1743759048977,-575.8,0.00021615,2]
[357120550,1743759048986,-4968.79,0.00021616,2]
[357120551,1743759048995,-500.0,0.00021652,2]
[357120552,1743759049005,-575.8,0.00021889,2]
[357120553,1743759049019,-4968.79,0.0002189,2]
[357120554,1743759049028,-154.54723318,0.000219,2]
[357120555,1743759049038,-500.0,0.000219,2]
[357120556,1743759049050,-1000.0,0.00021905,2]
[357120557,1743759049062,-1000.0,0.00021905,2]
[357120558,1743759049071,-1000.0,0.00021905,2]
[357120559,1743759049080,-621.8592574,0.00021906,2]
[357120560,1743759049090,-500.0,0.00021908,2]
[357120561,1743759049101,-500.0,0.00021973,2]
[357120562,1743759049112,-500.0,0.00021973,2]
[357120563,1743759049121,-500.0,0.00021973,2]
[357120564,1743759049131,-162.96941909,0.00021999,2]
[357120565,1743759049141,-522225.36,0.00022,14]
[357120566,1743759049151,-2045.68,0.00022,2]
[357120567,1743759049161,-4880.1,0.00022,14]
[357120568,1743759049170,-4720.61,0.00022,14]
[357120569,1743759049180,-10949.35,0.00022,14]
[357120570,1743759049189,-300.0,0.00022,2]
[357120571,1743759049225,-221.519262,0.00022,7]
[357120572,1743759049234,-221.519262,0.00022,7]
[357120573,1743759049244,-817.935,0.00022,7]
[357120574,1743759049254,-817.935,0.00022,7]
[357120575,1743759049263,-212.970148,0.00022,7]
[357120576,1743759049273,-151.0,0.00022,7]
[357120577,1743759049283,-151.0,0.00022,7]
[357120578,1743759049292,-155.0,0.00022,2]
[357120579,1743759049301,-151.0,0.00022,7]
[357120580,1743759049311,-251.561718,0.00022,2]
[357120581,1743759049320,-251.561718,0.00022,2]
[357120582,1743759049330,-161.0,0.00022,2]
[357120583,1743759049340,-5632.25050524,0.00022072,3]
[357120584,1743759049349,-575.90000001,0.00022163,2]
[357120585,1743759049360,-4968.84292877,0.00022164,2]
[357120586,1743759049370,-160.0,0.0002228,3]
[357120587,1743759049379,-623.26836856,0.0002234,2]
[357120588,1743759049389,-563.5430393,0.00022491,2]
[357120589,1743759049398,-563.5430393,0.00022491,2]
[357120590,1743759049408,-563.5430393,0.00022491,2]
[357120591,1743759049418,-563.5430393,0.00022491,2]
[357120592,1743759049427,-506.4158567,0.00022491,2]
[357120593,1743759049437,-5632.25050524,0.00022934,4]
[357120594,1743759049445,-160.0,0.00023,3]
[357120595,1743759049455,-702.9798699,0.00023027,2]
[357120596,1743759049465,-500.0,0.0002303,2]
[357120597,1743759049475,-307.455993,0.00023267,2]
[357120598,1743759049484,-307.3075616,0.00023267,2]
[357120599,1743759049494,-62748.09993641,0.00023298,2]
[357120600,1743759049503,-558.2342964,0.00023356,2]
[357120601,1743759049513,-2000.0,0.00023365,4]
[357120602,1743759049525,-5632.25050524,0.00023797,4]
[357120603,1743759049535,-200.0,0.0002384,11]
[357120604,1743759049544,-500.0,0.00023973,2]
[357120605,1743759049553,-100199.10432994,0.00024,14]
[357120606,1743759049591,-40356.3215383,0.00024,14]
[357120607,1743759049602,-827.60891941,0.00024,14]
[357120608,1743759049658,-500.0,0.00015863,2]
[357120609,1743759049667,-500.0,0.00016409,2]
[357120610,1743759049676,-500.0,0.00016683,2]
[357120611,1743759049686,-500.0,0.00016957,2]
[357120612,1743759049695,-161.0,0.00023014,2]
[357120613,1743759049704,-9127.76512078,0.00024,14]
[357120614,1743759049715,-6000.0,0.00024,14]
[357120615,1743759049726,-382.68,0.00024,14]
[357120616,1743759049737,-536.51705941,0.00024,14]
[357120617,1743759049755,-7000.0,0.00024,14]
[357120618,1743759049771,-12309.99999272,0.00024,14]
[357120619,1743759049782,-890.0,0.00024,14]
[357120655,1743760232051,-188.535174,0.00013699,2]
[357120656,1743760232061,-154.60937113,0.00014859,2]
[357120657,1743760232074,-861.03997087,0.00014859,2]
[357120658,1743760232084,-4715.8878682,0.0001494,2]
[357120659,1743760232094,-157.19091253,0.0001576,2]
[357120660,1743760232104,-300.0,0.00015857,2]
[357120661,1743760232114,-878.85,0.00015858,2]
[357120662,1743760232124,-500.0,0.00015858,2]
[357120663,1743760232133,-500.0,0.00015858,2]
[357120664,1743760232143,-500.0,0.00015858,2]
[357120665,1743760232153,-516.58,0.00015858,2]
[357120666,1743760232163,-500.0,0.00015858,2]
[357120667,1743760232172,-500.0,0.00015858,2]
[357120668,1743760232182,-500.0,0.00015858,2]
[357120669,1743760232195,-500.0,0.00015858,2]
[357120670,1743760232205,-833.07082469,0.00015858,2]
[357120671,1743760232216,-4308.58756329,0.00015858,2]
[357120672,1743760232256,-18345.24719152,0.00015858,2]
[357120673,1743760232266,-500.0,0.00015859,2]
[357120674,1743760232276,-500.0,0.00015859,2]
[357120675,1743760232285,-500.0,0.00015859,2]
[357120676,1743760232295,-500.0,0.00015859,2]
[357120677,1743760232304,-500.0,0.00015859,2]
[357120678,1743760232314,-500.0,0.00015859,2]
[357120679,1743760232324,-500.0,0.00015859,2]
[357120680,1743760232334,-321.01932539,0.00015859,2]
[357120681,1743760232344,-500.0,0.00015859,2]
[357120682,1743760232354,-757.05,0.00015859,2]
[357120683,1743760232364,-500.0,0.00015859,2]
[357120684,1743760232374,-500.0,0.00015859,2]
[357120685,1743760232383,-500.0,0.00015859,2]
[357120686,1743760232393,-500.0,0.00015859,2]
[357120687,1743760232402,-500.0,0.00015859,2]
[357120688,1743760232416,-500.0,0.00015859,2]
[357120689,1743760232426,-500.0,0.00015859,2]
[357120690,1743760232435,-500.0,0.00015859,2]
[357120691,1743760232446,-500.0,0.00015859,2]
[357120692,1743760232458,-500.0,0.00015859,2]
[357120693,1743760232468,-500.0,0.00015859,2]
[357120694,1743760232478,-500.0,0.00015859,2]
[357120695,1743760232489,-500.0,0.00015859,2]
[357120696,1743760232498,-500.0,0.00015859,2]
[357120697,1743760232508,-500.0,0.00015859,2]
[357120698,1743760232517,-500.0,0.00015859,2]
[357120699,1743760232527,-500.0,0.00015859,2]
[357120700,1743760232538,-500.0,0.00015859,2]
[357120701,1743760232548,-252.12833001,0.00015859,2]
[357120702,1743760232557,-500.0,0.00015859,2]
[357120703,1743760232567,-161.66808758,0.00015859,2]
[357120704,1743760232577,-500.0,0.00015859,2]
[357120705,1743760232587,-500.0,0.00015859,2]
[357120706,1743760232596,-500.0,0.0001586,2]
[357120707,1743760232606,-500.0,0.0001586,2]
[357120708,1743760232615,-500.0,0.0001586,2]
[357120709,1743760232625,-500.0,0.0001586,2]
[357120710,1743760232635,-500.0,0.0001586,2]
[357120711,1743760232644,-500.0,0.0001586,2]
[357120712,1743760232656,-500.0,0.0001586,2]
[357120713,1743760232665,-500.0,0.0001586,2]
[357120714,1743760232674,-500.0,0.0001586,2]
[357120715,1743760232684,-500.0,0.0001586,2]
[357120716,1743760232694,-500.0,0.0001586,2]
[357120717,1743760232704,-500.0,0.0001586,2]
[357120718,1743760232714,-500.0,0.0001586,2]
[357120719,1743760232723,-500.0,0.0001586,2]
[357120720,1743760232733,-500.0,0.0001586,2]
[357120721,1743760232742,-500.0,0.0001586,2]
[357120722,1743760232752,-500.0,0.0001586,2]
[357120723,1743760232762,-500.0,0.0001586,2]
[357120724,1743760232771,-500.0,0.0001586,2]
[357120725,1743760232781,-500.0,0.0001586,2]
[357120726,1743760232790,-500.0,0.0001586,2]
[357120727,1743760232800,-500.0,0.0001586,2]
[357120728,1743760232810,-500.0,0.0001586,2]
[357120729,1743760232821,-500.0,0.0001586,2]
[357120730,1743760232830,-500.0,0.0001586,2]
[357120731,1743760232840,-500.0,0.0001586,2]
[357120732,1743760232850,-500.0,0.0001586,2]
[357120733,1743760232859,-500.0,0.0001586,2]
[357120734,1743760232869,-500.0,0.0001586,2]
[357120735,1743760232878,-500.0,0.0001586,2]
[357120736,1743760232887,-500.0,0.0001586,2]
[357120737,1743760232897,-500.0,0.0001586,2]
[357120738,1743760232907,-500.0,0.0001586,2]
[357120739,1743760232916,-500.0,0.0001586,2]
[357120740,1743760232926,-500.0,0.0001586,2]
[357120741,1743760232936,-500.0,0.0001586,2]
[357120742,1743760232945,-500.0,0.0001586,2]
[357120743,1743760232956,-500.0,0.0001586,2]
[357120744,1743760232965,-500.0,0.0001586,2]
[357120745,1743760232975,-500.0,0.0001586,2]
[357120746,1743760232984,-500.0,0.0001586,2]
[357120747,1743760232994,-500.0,0.0001586,2]
[357120748,1743760233004,-500.0,0.0001586,2]
[357120749,1743760233014,-500.0,0.0001586,2]
[357120750,1743760233024,-500.0,0.0001586,2]
[357120751,1743760233034,-500.0,0.0001586,2]
[357120752,1743760233044,-500.0,0.0001586,2]
[357120753,1743760233054,-500.0,0.0001586,2]
[357120754,1743760233063,-1373.26,0.0001586,2]
[357120755,1743760233074,-500.0,0.0001586,2]
[357120756,1743760233083,-500.0,0.00015861,2]
[357120757,1743760233093,-500.0,0.00015861,2]
[357120758,1743760233103,-500.0,0.00015861,2]
[357120759,1743760233112,-500.0,0.00015861,2]
[357120760,1743760233122,-500.0,0.00015861,2]
[357120761,1743760233131,-500.0,0.00015861,2]
[357120762,1743760233141,-500.0,0.00015861,2]
[357120763,1743760233151,-500.0,0.00015861,2]
[357120764,1743760233161,-500.0,0.00015861,2]
[357120765,1743760233171,-500.0,0.00015861,2]
[357120766,1743760233182,-500.0,0.00015861,2]
[357120767,1743760233192,-500.0,0.00015861,2]
[357120768,1743760233202,-500.0,0.00015861,2]
[357120769,1743760233215,-500.0,0.00015861,2]
[357120770,1743760233386,-4248.60077674,0.000159,2]
[357120771,1743760233396,-878.85,0.00016132,2]
[357120772,1743760233407,-500.0,0.00016132,2]
[357120773,1743760233417,-500.0,0.00016132,2]
[357120774,1743760233427,-519.72090805,0.00016132,2]
[357120775,1743760233437,-516.58,0.00016132,2]
[357120776,1743760233446,-500.0,0.00016132,2]
[357120777,1743760233457,-500.0,0.00016132,2]
[357120778,1743760233466,-500.0,0.00016132,2]
[357120779,1743760233476,-500.0,0.00016132,2]
[357120780,1743760233487,-500.0,0.00016133,2]
[357120781,1743760233497,-500.0,0.00016133,2]
[357120782,1743760233507,-500.0,0.00016133,2]
[357120783,1743760233527,-500.0,0.00016133,2]
[357120784,1743760233539,-500.0,0.00016133,2]
[357120785,1743760233549,-579.60939016,0.00016133,2]
[357120786,1743760233559,-500.0,0.00016133,2]
[357120787,1743760233571,-500.0,0.00016133,2]
[357120788,1743760233581,-757.05,0.00016133,2]
[357120789,1743760233592,-500.0,0.00016133,2]
[357120790,1743760233603,-500.0,0.00016133,2]
[357120791,1743760233614,-500.0,0.00016133,2]
[357120792,1743760233625,-500.0,0.00016133,2]
[357120793,1743760233635,-500.0,0.00016133,2]
[357120794,1743760233646,-500.0,0.00016133,2]
[357120795,1743760233656,-500.0,0.00016133,2]
[357120796,1743760233667,-500.0,0.00016133,2]
[357120797,1743760233677,-500.0,0.00016133,2]
[357120798,1743760233687,-500.0,0.00016133,2]
[357120799,1743760233698,-500.0,0.00016133,2]
[357120800,1743760233708,-500.0,0.00016133,2]
[357120801,1743760233719,-500.0,0.00016133,2]
[357120802,1743760233729,-500.0,0.00016133,2]
[357120803,1743760233739,-500.0,0.00016134,2]
[357120804,1743760233750,-500.0,0.00016134,2]
[357120805,1743760233760,-500.0,0.00016134,2]
[357120806,1743760233769,-500.0,0.00016134,2]
[357120807,1743760233779,-500.0,0.00016134,2]
[357120808,1743760233790,-500.0,0.00016134,2]
[357120809,1743760233800,-500.0,0.00016134,2]
[357120810,1743760233810,-500.0,0.00016134,2]
[357120811,1743760233820,-521.00015921,0.00016134,2]
[357120812,1743760233830,-500.0,0.00016134,2]
[357120813,1743760233840,-500.0,0.00016134,2]
[357120814,1743760233850,-500.0,0.00016134,2]
[357120815,1743760233861,-500.0,0.00016134,2]
[357120816,1743760233871,-500.0,0.00016134,2]
[357120817,1743760233882,-500.0,0.00016134,2]
[357120818,1743760233892,-500.0,0.00016134,2]
[357120819,1743760233902,-500.0,0.00016134,2]
[357120820,1743760233912,-34.9196503,0.00016134,2]
[357120826,1743760237882,-500.0,0.00015858,2]
[357120827,1743760237892,-500.0,0.00015858,2]
[357120828,1743760237902,-500.0,0.0001586,2]
[357120829,1743760237912,-500.0,0.00016132,2]
[357120830,1743760237922,-500.0,0.00016132,2]
[357120831,1743760237932,-62.4022144,0.00016134,2]
[357120832,1743760237944,-437.5977856,0.00016134,2]
[357120833,1743760237953,-172.42682267,0.00016134,2]
[357120834,1743760237969,-327.57317733,0.00016134,2]